﻿Departmental Area,Entity,Payment Date,Expense type,Expense Area,Supplier name,Payment Reference,Invoice Distribution Amounts,Description,Supplier Type,Expenditure Type
UK Statistics Authority,Office for National Statistics,01-Oct-19,Telecoms,IT Operations,Crown Hosting Data Centres Limited,155333,"2,580.00", Crown Hosted Data,SME,Programme Expenditure
UK Statistics Authority,Office for National Statistics,01-Oct-19,IT Management And Change,IT Operations,Crown Hosting Data Centres Limited,155333,"63,146.04", Crown Hosted Data,SME,Programme Expenditure
UK Statistics Authority,Office for National Statistics,01-Oct-19,IT Management And Change,Office Of Chief Data And Information,Crown Hosting Data Centres Limited,155333,"9,109.17", Crown Hosted Data,SME,Programme Expenditure
UK Statistics Authority,Office for National Statistics,01-Oct-19,Exp - Purchase Of Goods/Services - Contractors,Business Indicators And B O P,Mango Solutions,155334,"32,760.00", Information Management Services,SME,Programme Expenditure
UK Statistics Authority,Office for National Statistics,01-Oct-19,Exp - Purchase Of Goods/Services - Contractors,Business Indicators And B O P,Mango Solutions,155334,"15,912.00", Information Management Services,SME,Programme Expenditure
UK Statistics Authority,Office for National Statistics,01-Oct-19,Exp - Purchase Of Goods/Services - IT Contractual Services,Tech Delivery Data As A Platform,Mango Solutions,155334,"32,175.00", Information Management Services,SME,Programme Expenditure
UK Statistics Authority,Office for National Statistics,01-Oct-19,Exp - Purchase Of Goods/Services - IT Contractual Services,Digital Publishing,E Synergy Solutions,155336,"12,600.00", Information Management Services ,SME,Programme Expenditure
UK Statistics Authority,Office for National Statistics,01-Oct-19,Exp - Purchase Of Goods/Services - IT Contractual Services,DST Reapportioning,E Synergy Solutions,155336,"67,050.00", Information Management Services ,SME,Programme Expenditure
UK Statistics Authority,Office for National Statistics,01-Oct-19,End User Software And Hardware,Strategy And Architecture,E Synergy Solutions,155336,31.2, Information Management Services ,SME,Programme Expenditure
UK Statistics Authority,Office for National Statistics,01-Oct-19,Exp - Purchase Of Goods/Services - IT Contractual Services,Tech Delivery Legacy Sp,E Synergy Solutions,155336,"91,422.00", Information Management Services ,SME,Programme Expenditure
UK Statistics Authority,Office for National Statistics,01-Oct-19,Exp - Purchase Of Goods/Services - IT Contractual Services,Data Science Campus,E Synergy Solutions,155336,"29,880.00", Information Management Services ,SME,Programme Expenditure
UK Statistics Authority,Office for National Statistics,01-Oct-19,IT Management And Change,Digital Publishing,Swirrl IT Ltd,155337,"82,072.80", Information Management Services,SME,Programme Expenditure
UK Statistics Authority,Office for National Statistics,01-Oct-19,"ICT Outsourcing, Maintenance And Support",Security And Information Management Saim,SCC,155342,"92,778.88", Software Lincence and Support,Large,Programme Expenditure
UK Statistics Authority,Office for National Statistics,01-Oct-19,Exp - Purchase Of Goods/Services - Contractors,Testing,LA International,155345,"6,087.30", Information Management Services ,SME,Programme Expenditure
UK Statistics Authority,Office for National Statistics,01-Oct-19,Exp - Purchase Of Goods/Services - Contractors,Business Indicators And B O P,LA International,155345,"4,869.85", Information Management Services ,SME,Programme Expenditure
UK Statistics Authority,Office for National Statistics,01-Oct-19,Exp - Purchase Of Goods/Services - Contractors,Security Advisory,LA International,155345,"10,572.66", Information Management Services ,SME,Programme Expenditure
UK Statistics Authority,Office for National Statistics,01-Oct-19,Exp - Purchase Of Goods/Services - Contractors,Data Architecture,LA International,155345,"3,588.30", Information Management Services ,SME,Programme Expenditure
UK Statistics Authority,Office for National Statistics,01-Oct-19,Exp - Purchase Of Goods/Services - Contractors,Data Architecture,LA International,155345,"3,844.62", Information Management Services ,SME,Programme Expenditure
UK Statistics Authority,Office for National Statistics,01-Oct-19,Exp - Purchase Of Goods/Services - Contractors,Data Architecture,LA International,155345,"3,748.50", Information Management Services ,SME,Programme Expenditure
UK Statistics Authority,Office for National Statistics,01-Oct-19,Exp - Purchase Of Goods/Services - Contractors,Tech Delivery Srs,LA International,155345,"3,588.30", Information Management Services ,SME,Programme Expenditure
UK Statistics Authority,Office for National Statistics,01-Oct-19,Exp - Purchase Of Goods/Services - Contractors,Tech Delivery Data As A Platform,LA International,155345,"3,588.30", Information Management Services ,SME,Programme Expenditure
UK Statistics Authority,Office for National Statistics,01-Oct-19,Exp - Purchase Of Goods/Services - Contractors,Tech Delivery Data As A Platform,LA International,155345,"3,156.90", Information Management Services ,SME,Programme Expenditure
UK Statistics Authority,Office for National Statistics,01-Oct-19,Exp - Purchase Of Goods/Services - Contractor Travel,Tech Delivery Data As A Platform,LA International,155345,97.08, Information Management Services ,SME,Programme Expenditure
UK Statistics Authority,Office for National Statistics,01-Oct-19,Exp - Purchase Of Goods/Services - Contractors,IT Applications,LA International,155345,"5,203.28", Information Management Services ,SME,Programme Expenditure
UK Statistics Authority,Office for National Statistics,01-Oct-19,Exp - Purchase Of Goods/Services - Contractors,Digital Delivery,LA International,155345,"12,174.72", Information Management Services ,SME,Programme Expenditure
UK Statistics Authority,Office for National Statistics,01-Oct-19,Exp - Purchase Of Goods/Services - IT Contractual Services,Dst Reapportioning,QA Ltd,155346,"208,644.00", Information Management Services,Large,Programme Expenditure
UK Statistics Authority,Office for National Statistics,01-Oct-19,Exp - Purchase Of Goods/Services - Contractors,Digital Delivery,QA Ltd,155346,"1,193.15", Information Management Services,Large,Programme Expenditure
UK Statistics Authority,Office for National Statistics,01-Oct-19,Special Payments,Data Collection Service,Serco Ltd,155349,"104,620.18", Information Management Services,Large,Programme Expenditure
UK Statistics Authority,Office for National Statistics,01-Oct-19,Exp - Purchase Of Goods And Services Consultants,Consultancy Management,Bloom Procurement Services Ltd,155355,"828,568.80", Cunsus Information Management Services,Large,Programme Expenditure
UK Statistics Authority,Office for National Statistics,01-Oct-19,Surveys,Social Surveys Division,Natcen Social Research,155356,"280,315.06", Statistical Services,Large,Programme Expenditure
UK Statistics Authority,Office for National Statistics,01-Oct-19,Exp - Purchase Of Goods/Services - Incentive Payments,Social Surveys Division,Natcen Social Research,155356,"12,206.75", Statistical Services,Large,Programme Expenditure
UK Statistics Authority,Office for National Statistics,01-Oct-19,Vouchers,People and Busines Services,Park Retail Ltd,155357,379, Love2Shop Employee Performance Reward Payment ,Large,Programme Expenditure
UK Statistics Authority,Office for National Statistics,01-Oct-19,Exp - Permanent Uk Staff - PRP Voucher Payments,Ons Corporate Funds,Park Retail Ltd,155357,-92.5, Love2Shop Employee Performance Reward Payment ,Large,Programme Expenditure
UK Statistics Authority,Office for National Statistics,01-Oct-19,Exp - Purchase Of Goods/Services - Incentive Payments,Interviewer Support,Park Retail Ltd,155357,"7,063.15", Love2Shop Employee Performance Reward Payment ,Large,Programme Expenditure
UK Statistics Authority,Office for National Statistics,01-Oct-19,Exp - Purchase Of Goods/Services - Incentive Payments,Survey Management,Park Retail Ltd,155357,"71,931.39", Love2Shop Employee Performance Reward Payment ,Large,Programme Expenditure
UK Statistics Authority,Office for National Statistics,01-Oct-19,Exp - Purchase Of Goods/Services - Incentive Payments,Survey Management,Park Retail Ltd,155357,"1,292.38", Love2Shop Employee Performance Reward Payment ,Large,Programme Expenditure
UK Statistics Authority,Office for National Statistics,01-Oct-19,Exp - Purchase Of Goods/Services - Incentive Payments,Survey Management,Park Retail Ltd,155357,"3,755.64", Love2Shop Employee Performance Reward Payment ,Large,Programme Expenditure
UK Statistics Authority,Office for National Statistics,01-Oct-19,Exp - Purchase Of Goods/Services - Incentive Payments,Survey Management,Park Retail Ltd,155357,"5,887.52", Love2Shop Employee Performance Reward Payment ,Large,Programme Expenditure
UK Statistics Authority,Office for National Statistics,01-Oct-19,"ICT Outsourcing, Maintenance And Support",IT Operations,Equiniti Limited,155364,"94,425.60", Information Management Services,Large,Programme Expenditure
UK Statistics Authority,Office for National Statistics,01-Oct-19,IT Management And Change,IT Operations,Software Box Ltd,155367,"26,968.80", Computer Hardware ,SME,Programme Expenditure
UK Statistics Authority,Office for National Statistics,01-Oct-19,Marketing & Media,Stakeholder Engagement And Comms,Manning Gottlieb,155377,"101,293.77", Census Information Management Services,Large,Programme Expenditure
UK Statistics Authority,Office for National Statistics,01-Oct-19,"ICT Outsourcing, Maintenance And Support",Tech Delivery Next Gen IT And Infrastructure,CCS MEDIA Ltd,155378,"1,083.11", Software Lincence and Support,Large,Programme Expenditure
UK Statistics Authority,Office for National Statistics,01-Oct-19,"ICT Outsourcing, Maintenance And Support",IT Operations,CCS MEDIA Ltd,155378,541.56, Software Lincence and Support,Large,Programme Expenditure
UK Statistics Authority,Office for National Statistics,01-Oct-19,IT Management And Change,IT Operations,CCS MEDIA Ltd,155378,"14,164.85", Software Lincence and Support,Large,Programme Expenditure
UK Statistics Authority,Office for National Statistics,01-Oct-19,End User Software And Hardware,IT Operations,CCS MEDIA Ltd,155378,"23,970.99", Software Lincence and Support,Large,Programme Expenditure
UK Statistics Authority,Office for National Statistics,01-Oct-19,Exp - Purchase Of Goods/Services - IT Contractual Services,Tech Delivery Srs,"Nomensa Ltd,",155380,"70,230.00", Information Management Services,Large,Programme Expenditure
UK Statistics Authority,Office for National Statistics,01-Oct-19,Exp - Purchase Of Goods/Services - Contractor Travel,Tech Delivery Srs,"Nomensa Ltd,",155380,"2,359.06", Information Management Services,Large,Programme Expenditure
UK Statistics Authority,Office for National Statistics,01-Oct-19,Surveys,Crime Statistics,Kantar UK Ltd,155381,"446,202.80", Statistical Services,Large,Programme Expenditure
UK Statistics Authority,Office for National Statistics,01-Oct-19,Exp - Purchase Of Goods And Services Consultants,Tech Delivery Srs,Equiniti-TopLevel,155383,"54,517.92", Information Management Services,SME,Programme Expenditure
UK Statistics Authority,Office for National Statistics,01-Oct-19,Exp - Purchase Of Goods/Services - IT Contractual Services,Tech Delivery Srs,Equiniti-TopLevel,155383,"26,818.98", Information Management Services,SME,Programme Expenditure
UK Statistics Authority,Office for National Statistics,01-Oct-19,Hosting,IT Operations,Equiniti-TopLevel,155383,"4,734.00", Information Management Services,SME,Programme Expenditure
UK Statistics Authority,Office for National Statistics,01-Oct-19,Special Payments,Data Collection Service,Leidos Innovations UK Limited,155384,"2,986,184.27", Census Information Management Services,Large,Programme Expenditure
UK Statistics Authority,Office for National Statistics,02-Oct-19,Travel And Subsistence,CWT Trainline,Corporate Travel Management ,155392,"74,501.99", Corporate Travel Management ,SME,Programme Expenditure
UK Statistics Authority,Office for National Statistics,02-Oct-19,Exp - Purchase Of Goods/Services - IT Contractual Services,Strategy And Architecture,Medley Business Solutions Ltd,155396,"30,412.80", Information Management Services,Large,Programme Expenditure
UK Statistics Authority,Office for National Statistics,02-Oct-19,Exp - Purchase Of Goods/Services - Contractor Travel,Strategy And Architecture,Medley Business Solutions Ltd,155396,"1,002.61", Information Management Services,Large,Programme Expenditure
UK Statistics Authority,Office for National Statistics,02-Oct-19,Exp - Purchase Of Goods/Services - Contractors,Business Architecture,Certes Computing Ltd,155397,"16,909.20", Information Management Services,SME,Programme Expenditure
UK Statistics Authority,Office for National Statistics,02-Oct-19,Exp - Purchase Of Goods/Services - Contractors,Testing,Certes Computing Ltd,155397,"33,485.34", Information Management Services,SME,Programme Expenditure
UK Statistics Authority,Office for National Statistics,02-Oct-19,Exp - Purchase Of Goods/Services - Contractors,Programme Delivery,Certes Computing Ltd,155397,"15,371.42", Information Management Services,SME,Programme Expenditure
UK Statistics Authority,Office for National Statistics,02-Oct-19,Exp - Purchase Of Goods/Services - Contractors,Programme Delivery,Certes Computing Ltd,155397,"14,411.26", Information Management Services,SME,Programme Expenditure
UK Statistics Authority,Office for National Statistics,02-Oct-19,Exp - Purchase Of Goods/Services - Contractors,Business Indicators And B O P,Certes Computing Ltd,155397,"16,140.67", Information Management Services,SME,Programme Expenditure
UK Statistics Authority,Office for National Statistics,02-Oct-19,Exp - Purchase Of Goods/Services - Contractors,Economic Statistics Architecture Business Change,Certes Computing Ltd,155397,"24,683.64", Information Management Services,SME,Programme Expenditure
UK Statistics Authority,Office for National Statistics,02-Oct-19,Exp - Purchase Of Goods/Services - Contractors,Commercial Services,Certes Computing Ltd,155397,"8,646.43", Information Management Services,SME,Programme Expenditure
UK Statistics Authority,Office for National Statistics,02-Oct-19,Exp - Purchase Of Goods/Services - Contractors,Security Advisory,Certes Computing Ltd,155397,"11,657.18", Information Management Services,SME,Programme Expenditure
UK Statistics Authority,Office for National Statistics,02-Oct-19,Exp - Purchase Of Goods/Services - Contractors,Data Architecture,Certes Computing Ltd,155397,"26,350.37", Information Management Services,SME,Programme Expenditure
UK Statistics Authority,Office for National Statistics,02-Oct-19,Exp - Purchase Of Goods/Services - Contractors,Tech Delivery Legacy Sp,Certes Computing Ltd,155397,"12,169.50", Information Management Services,SME,Programme Expenditure
UK Statistics Authority,Office for National Statistics,02-Oct-19,Exp - Purchase Of Goods/Services - Contractors,IT Applications,Certes Computing Ltd,155397,"16,204.79", Information Management Services,SME,Programme Expenditure
UK Statistics Authority,Office for National Statistics,02-Oct-19,Exp - Purchase Of Goods/Services - Contractors,Digital Delivery,Certes Computing Ltd,155397,"15,372.00", Information Management Services,SME,Programme Expenditure
UK Statistics Authority,Office for National Statistics,02-Oct-19,Exp - Purchase Of Goods/Services - Contractors,Digital Delivery,Certes Computing Ltd,155397,"30,180.58", Information Management Services,SME,Programme Expenditure
UK Statistics Authority,Office for National Statistics,02-Oct-19,Exp - Purchase Of Goods/Services - Contractors,Digital Delivery,Certes Computing Ltd,155397,"7,045.32", Information Management Services,SME,Programme Expenditure
UK Statistics Authority,Office for National Statistics,02-Oct-19,Exp - Purchase Of Goods/Services - Contractors,Digital Delivery,Certes Computing Ltd,155397,"16,908.77", Information Management Services,SME,Programme Expenditure
UK Statistics Authority,Office for National Statistics,02-Oct-19,Exp - Purchase Of Goods/Services - Contractors,Digital Delivery,Certes Computing Ltd,155397,"17,998.20", Information Management Services,SME,Programme Expenditure
UK Statistics Authority,Office for National Statistics,02-Oct-19,Rent Payable,Property Titchfield,Eaton Aerospace Limited,155399,"109,953.60", Car Parking Facilities Charges at Titchfield Office,Large,Programme Expenditure
UK Statistics Authority,Office for National Statistics,02-Oct-19,Exp - Short-Term Contract & Agency Staff - Full Cost,Census White Paper,Parity Resources Limited,155400,"3,243.79", Census Information Management Services,Large,Programme Expenditure
UK Statistics Authority,Office for National Statistics,02-Oct-19,Exp - Short-Term Contract & Agency Staff - Full Cost,Beyond 2021 Research And Design,Parity Resources Limited,155400,"5,450.11", Information Management Services,Large,Programme Expenditure
UK Statistics Authority,Office for National Statistics,02-Oct-19,Exp - Purchase Of Goods/Services - Contractors,Business Architecture,Parity Resources Limited,155400,"23,967.77", Information Management Services,Large,Programme Expenditure
UK Statistics Authority,Office for National Statistics,02-Oct-19,Exp - Short-Term Contract & Agency Staff - Full Cost,Census CCS Data Collection,Parity Resources Limited,155400,"1,847.96", Census Information Management Services,Large,Programme Expenditure
UK Statistics Authority,Office for National Statistics,02-Oct-19,Exp - Purchase Of Goods/Services - Contractors,Programme Other,Parity Resources Limited,155400,"2,114.64", Information Management Services,Large,Programme Expenditure
UK Statistics Authority,Office for National Statistics,02-Oct-19,Exp - Purchase Of Goods/Services - Contractors,Programme Delivery,Parity Resources Limited,155400,"28,900.08", Information Management Services,Large,Programme Expenditure
UK Statistics Authority,Office for National Statistics,02-Oct-19,Exp - Purchase Of Goods/Services - Contractors,Digital Publishing,Parity Resources Limited,155400,"11,534.40", Information Management Services,Large,Programme Expenditure
UK Statistics Authority,Office for National Statistics,02-Oct-19,Exp - Short-Term Contract & Agency Staff - Full Cost,Business Indicators And B O P,Parity Resources Limited,155400,"3,960.42", Information Management Services,Large,Programme Expenditure
UK Statistics Authority,Office for National Statistics,02-Oct-19,Exp - Purchase Of Goods/Services - Contractors,Business Indicators And B O P,Parity Resources Limited,155400,"13,292.93", Information Management Services,Large,Programme Expenditure
UK Statistics Authority,Office for National Statistics,02-Oct-19,Exp - Purchase Of Goods/Services - Contractors,Business Indicators And B O P,Parity Resources Limited,155400,"1,049.92", Information Management Services,Large,Programme Expenditure
UK Statistics Authority,Office for National Statistics,02-Oct-19,Exp - Purchase Of Goods/Services - Contractors,Business Indicators And B O P,Parity Resources Limited,155400,"19,333.44", Information Management Services,Large,Programme Expenditure
UK Statistics Authority,Office for National Statistics,02-Oct-19,Exp - Short-Term Contract & Agency Staff - Full Cost,Strategy And Engagement,Parity Resources Limited,155400,"2,753.69", Information Management Services,Large,Programme Expenditure
UK Statistics Authority,Office for National Statistics,02-Oct-19,Exp - Short-Term Contract & Agency Staff - Full Cost,Economic Statistics Architecture Business Change,Parity Resources Limited,155400,"1,295.51", Information Management Services,Large,Programme Expenditure
UK Statistics Authority,Office for National Statistics,02-Oct-19,Exp - Short-Term Contract & Agency Staff - Full Cost,Economic Statistics Architecture Business Change,Parity Resources Limited,155400,"1,408.60", Information Management Services,Large,Programme Expenditure
UK Statistics Authority,Office for National Statistics,02-Oct-19,Exp - Short-Term Contract & Agency Staff - Full Cost,Ask Business Services,Parity Resources Limited,155400,"1,896.38", Information Management Services,Large,Programme Expenditure
UK Statistics Authority,Office for National Statistics,02-Oct-19,Exp - Short-Term Contract & Agency Staff - Full Cost,Recruitment,Parity Resources Limited,155400,"3,515.09", Information Management Services,Large,Programme Expenditure
UK Statistics Authority,Office for National Statistics,02-Oct-19,Exp - Short-Term Contract & Agency Staff - Full Cost,Recruitment,Parity Resources Limited,155400,"1,293.83", Information Management Services,Large,Programme Expenditure
UK Statistics Authority,Office for National Statistics,02-Oct-19,Exp - Purchase Of Goods/Services - Contractors,Security Advisory,Parity Resources Limited,155400,"25,837.06", Information Management Services,Large,Programme Expenditure
UK Statistics Authority,Office for National Statistics,02-Oct-19,Exp - Purchase Of Goods/Services - Contractors,Security Advisory,Parity Resources Limited,155400,"17,686.08", Information Management Services,Large,Programme Expenditure
UK Statistics Authority,Office for National Statistics,02-Oct-19,Exp - Purchase Of Goods/Services - Contractors,Tech Delivery Legacy Sp,Parity Resources Limited,155400,"12,687.84", Information Management Services,Large,Programme Expenditure
UK Statistics Authority,Office for National Statistics,02-Oct-19,Exp - Purchase Of Goods/Services - Contractors,IT Applications,Parity Resources Limited,155400,"39,319.82", Information Management Services,Large,Programme Expenditure
UK Statistics Authority,Office for National Statistics,02-Oct-19,Exp - Short-Term Contract & Agency Staff - Full Cost,Office Of Chief Data And Information,Parity Resources Limited,155400,"2,088.00", Information Management Services,Large,Programme Expenditure
UK Statistics Authority,Office for National Statistics,02-Oct-19,Exp - Short-Term Contract & Agency Staff - Full Cost,Digital Delivery,Parity Resources Limited,155400,"1,356.42", Information Management Services,Large,Programme Expenditure
UK Statistics Authority,Office for National Statistics,02-Oct-19,Exp - Short-Term Contract & Agency Staff - Full Cost,Digital Delivery,Parity Resources Limited,155400,"1,544.24", Information Management Services,Large,Programme Expenditure
UK Statistics Authority,Office for National Statistics,02-Oct-19,Exp - Purchase Of Goods/Services - Contractors,Digital Delivery,Parity Resources Limited,155400,"1,076.54", Information Management Services,Large,Programme Expenditure
UK Statistics Authority,Office for National Statistics,02-Oct-19,Exp - Purchase Of Goods/Services - Contractors,Digital Delivery,Parity Resources Limited,155400,"27,990.14", Information Management Services,Large,Programme Expenditure
UK Statistics Authority,Office for National Statistics,02-Oct-19,Exp - Purchase Of Goods/Services - Contractors,Digital Delivery,Parity Resources Limited,155400,"11,483.14", Information Management Services,Large,Programme Expenditure
UK Statistics Authority,Office for National Statistics,02-Oct-19,Exp - Purchase Of Goods/Services - Contractors,Digital Delivery,Parity Resources Limited,155400,"31,987.01", Information Management Services,Large,Programme Expenditure
UK Statistics Authority,Office for National Statistics,02-Oct-19,Exp - Purchase Of Goods/Services - Contractors,Digital Delivery,Parity Resources Limited,155400,"10,076.58", Information Management Services,Large,Programme Expenditure
UK Statistics Authority,Office for National Statistics,02-Oct-19,Exp - Purchase Of Goods/Services - IT Contractual Services,Digital Delivery,Parity Resources Limited,155400,"9,872.78", Information Management Services,Large,Programme Expenditure
UK Statistics Authority,Office for National Statistics,02-Oct-19,Exp - Short-Term Contract & Agency Staff - Full Cost,Public Sector And Households,Parity Resources Limited,155400,"1,736.44", Information Management Services,Large,Programme Expenditure
UK Statistics Authority,Office for National Statistics,02-Oct-19,Exp - Short-Term Contract & Agency Staff - Full Cost,Interviewer Management TU,Parity Resources Limited,155400,"1,992.62", Information Management Services,Large,Programme Expenditure
UK Statistics Authority,Office for National Statistics,02-Oct-19,Other Goods And Services,Interviewer Management TU,Parity Resources Limited,155400,"2,469.70", Information Management Services,Large,Programme Expenditure
UK Statistics Authority,Office for National Statistics,02-Oct-19,Exp - Purchase Of Goods/Services - Contractors,Interviewer Support,Parity Resources Limited,155400,"7,449.30", Information Management Services,Large,Programme Expenditure
UK Statistics Authority,Office for National Statistics,02-Oct-19,Exp - Purchase Of Goods/Services - Contractors,Social Survey Transformation Titchfield,Parity Resources Limited,155400,"16,925.76", Information Management Services,Large,Programme Expenditure
UK Statistics Authority,Office for National Statistics,02-Oct-19,Exp - Short-Term Contract & Agency Staff - Full Cost,Labour Market,Parity Resources Limited,155400,"1,871.27", Information Management Services,Large,Programme Expenditure
UK Statistics Authority,Office for National Statistics,02-Oct-19,Exp - Short-Term Contract & Agency Staff - Full Cost,Labour Market,Parity Resources Limited,155400,"1,818.76", Information Management Services,Large,Programme Expenditure
UK Statistics Authority,Office for National Statistics,02-Oct-19,Other Goods And Services,Stakeholder Engagement And Comms,Four Communications Group Limited,155403,"114,033.44", Communication and Management Information Services,SME,Programme Expenditure
UK Statistics Authority,Office for National Statistics,03-Oct-19,Accommodation & Building Management,Interview Management IPS,Heathrow Airport,155719,"89,357.27", Accomodation cost ,Large,Programme Expenditure
UK Statistics Authority,Office for National Statistics,03-Oct-19,Exp - Purchase Of Goods/Services - Contractors,Security Advisory,Certes Computing Ltd,155724,"33,626.46", Information Management Services,SME,Programme Expenditure
UK Statistics Authority,Office for National Statistics,04-Oct-19,IT Management And Change,Digital Delivery,XMA Limited,155750,"27,550.92", Census Management Information Services,Large,Programme Expenditure
UK Statistics Authority,Office for National Statistics,07-Oct-19,FM Contract Payments,Mitie Payments,Vinci Construction UK Limited,156046,"132,260.65", Facility Management Services,Large,Programme Expenditure
UK Statistics Authority,Office for National Statistics,09-Oct-19,Travel And Subsistence,CWT Trainline,Corporate Travel Management ,156388,"85,148.17", Corporate Travel Management ,SME,Programme Expenditure
UK Statistics Authority,Office for National Statistics,09-Oct-19,Exp - Purchase Of Goods/Services - Contractors,Portfolio Delivery,Malikshaw Interim & Executive,156398,"63,268.92", Information Management Services,SME,Programme Expenditure
UK Statistics Authority,Office for National Statistics,10-Oct-19,Stationery,Lodgecard,Royal Bank of Scotland,156768,"9,864.12", Multiple Procurement Card Stationery Purchases  ,Large,Programme Expenditure
UK Statistics Authority,Office for National Statistics,10-Oct-19,Other Goods And Services,GPC,Royal Bank of Scotland,156768,"52,995.06", Multiple Procurement Card Purchases  ,Large,Programme Expenditure
UK Statistics Authority,Office for National Statistics,11-Oct-19,Marketing & Media,Stakeholder Engagement And Comms,Manning Gottlieb,156806,"194,188.88", Census Information Management Services,Large,Programme Expenditure
UK Statistics Authority,Office for National Statistics,14-Oct-19,Exp - Permanent Uk Staff - Prp Voucher Payments,ONS Corporate Funds,Park Retail Ltd,157353,"18,192.43", Love2Shop Employee Performance Reward Payment ,Large,Programme Expenditure
UK Statistics Authority,Office for National Statistics,14-Oct-19,Exp - Purchase Of Goods/Services - Incentive Payments,Survey Management,Park Retail Ltd,157353,"32,959.92", Survey Response Incentive Vouchers,Large,Programme Expenditure
UK Statistics Authority,Office for National Statistics,14-Oct-19,Exp - Purchase Of Goods/Services - Incentive Payments,Survey Management,Park Retail Ltd,157353,-9.25, Survey Response Incentive Vouchers,Large,Programme Expenditure
UK Statistics Authority,Office for National Statistics,14-Oct-19,Exp - Purchase Of Goods/Services - Incentive Payments,Survey Management,Park Retail Ltd,157353,"2,419.07", Survey Response Incentive Vouchers,Large,Programme Expenditure
UK Statistics Authority,Office for National Statistics,14-Oct-19,Capital Major Works >25K,Property Services,Vinci Construction UK Limited,157354,"79,876.80", Major Works Newport,Large,Programme Expenditure
UK Statistics Authority,Office for National Statistics,14-Oct-19,Major Works Over £25K,Property Christchurch,Vinci Construction UK Limited,157354,"27,900.00", Major Works Christchurch,Large,Programme Expenditure
UK Statistics Authority,Office for National Statistics,14-Oct-19,IT Management And Change,Digital Delivery,XMA Limited,157362,"105,547.50", Census Information Management Services,Large,Programme Expenditure
UK Statistics Authority,Office for National Statistics,15-Oct-19,Training & Development,Office Of Chief Data And Information,Armakuni Ltd,157377,"66,960.00", Training ,SME,Programme Expenditure
UK Statistics Authority,Office for National Statistics,16-Oct-19,Travel And Subsistence,CWT Trainline,Corporate Travel Management ,157657,"68,449.28", Corporate Travel Management ,SME,Programme Expenditure
UK Statistics Authority,Office for National Statistics,16-Oct-19,Capital Major Works >25K,Property Newport,Hawkings Cladding Ltd,157663,"3,687.67", Major Works Newport,SME,Programme Expenditure
UK Statistics Authority,Office for National Statistics,16-Oct-19,Major Works Over £25K,Property Newport,Hawkings Cladding Ltd,157663,"57,871.62", Major Works Newport,SME,Programme Expenditure
UK Statistics Authority,Office for National Statistics,18-Oct-19,"ICT Outsourcing, Maintenance And Support",IT Operations,Dell Computer Corp Ltd,157844,"102,406.08", Computer Hardware ,Large,Programme Expenditure
UK Statistics Authority,Office for National Statistics,18-Oct-19,Telecoms,IT Operations,CenturyLink Communications UK Ltd,157846,"45,154.58", Information Management Services ,Large,Programme Expenditure
UK Statistics Authority,Office for National Statistics,18-Oct-19,IT (Owned) At Cost - Additions,IT Operations,Centerprise International Ltd,157850,"120,162.38", Computer Hardware ,Large,Programme Expenditure
UK Statistics Authority,Office for National Statistics,18-Oct-19,Travel And Subsistence,CWT Trainline,Calder World of Travel,157851,"44,486.10", Corporate Travel Management ,SME,Programme Expenditure
UK Statistics Authority,Office for National Statistics,18-Oct-19,Exp - Purchase Of Goods/Services - Contractors,Business Architecture,Certes Computing Ltd,157852,"15,372.00", Information Management Services,SME,Programme Expenditure
UK Statistics Authority,Office for National Statistics,18-Oct-19,Exp - Purchase Of Goods/Services - Contractors,Testing,Certes Computing Ltd,157852,"20,496.00", Information Management Services,SME,Programme Expenditure
UK Statistics Authority,Office for National Statistics,18-Oct-19,Exp - Purchase Of Goods/Services - Contractors,Programme Delivery,Certes Computing Ltd,157852,"11,848.80", Information Management Services,SME,Programme Expenditure
UK Statistics Authority,Office for National Statistics,18-Oct-19,Exp - Purchase Of Goods/Services - Contractors,Programme Delivery,Certes Computing Ltd,157852,"12,810.00", Information Management Services,SME,Programme Expenditure
UK Statistics Authority,Office for National Statistics,18-Oct-19,Exp - Purchase Of Goods/Services - Contractors,Business Indicators And B O P,Certes Computing Ltd,157852,"13,450.56", Information Management Services,SME,Programme Expenditure
UK Statistics Authority,Office for National Statistics,18-Oct-19,Exp - Purchase Of Goods/Services - Contractors,Data Architecture,Certes Computing Ltd,157852,"7,199.28", Information Management Services,SME,Programme Expenditure
UK Statistics Authority,Office for National Statistics,18-Oct-19,Exp - Purchase Of Goods/Services - Contractors,Data Architecture,Certes Computing Ltd,157852,"9,991.87", Information Management Services,SME,Programme Expenditure
UK Statistics Authority,Office for National Statistics,18-Oct-19,Exp - Purchase Of Goods/Services - Contractors,Tech Delivery Legacy Sp,Certes Computing Ltd,157852,"27,281.87", Information Management Services,SME,Programme Expenditure
UK Statistics Authority,Office for National Statistics,18-Oct-19,Exp - Purchase Of Goods/Services - Contractors,IT Applications,Certes Computing Ltd,157852,"14,091.12", Information Management Services,SME,Programme Expenditure
UK Statistics Authority,Office for National Statistics,18-Oct-19,Exp - Purchase Of Goods/Services - Contractors,Digital Delivery,Certes Computing Ltd,157852,"16,652.40", Information Management Services,SME,Programme Expenditure
UK Statistics Authority,Office for National Statistics,18-Oct-19,Exp - Purchase Of Goods/Services - Contractors,Digital Delivery,Certes Computing Ltd,157852,"12,810.00", Information Management Services,SME,Programme Expenditure
UK Statistics Authority,Office for National Statistics,18-Oct-19,Exp - Purchase Of Goods/Services - Contractors,Digital Delivery,Certes Computing Ltd,157852,"11,336.40", Information Management Services,SME,Programme Expenditure
UK Statistics Authority,Office for National Statistics,18-Oct-19,Exp - Purchase Of Goods/Services - Contractors,Digital Delivery,Certes Computing Ltd,157852,"3,522.66", Information Management Services,SME,Programme Expenditure
UK Statistics Authority,Office for National Statistics,18-Oct-19,Exp - Purchase Of Goods/Services - Contractors,Digital Delivery,Certes Computing Ltd,157852,"7,045.32", Information Management Services,SME,Programme Expenditure
UK Statistics Authority,Office for National Statistics,18-Oct-19,Exp - Purchase Of Goods/Services - Contractors,Testing,LA International,157853,"16,175.44", Information Management Services ,SME,Programme Expenditure
UK Statistics Authority,Office for National Statistics,18-Oct-19,Exp - Purchase Of Goods/Services - Contractors,Data Architecture,LA International,157853,"3,844.62", Information Management Services ,SME,Programme Expenditure
UK Statistics Authority,Office for National Statistics,18-Oct-19,Exp - Purchase Of Goods/Services - Contractors,Tech Delivery Data As A Platform,LA International,157853,"3,156.90", Information Management Services ,SME,Programme Expenditure
UK Statistics Authority,Office for National Statistics,18-Oct-19,Exp - Purchase Of Goods/Services - Contractors,Digital Delivery,LA International,157853,"3,203.88", Information Management Services ,SME,Programme Expenditure
UK Statistics Authority,Office for National Statistics,18-Oct-19,Exp - Purchase Of Goods/Services - IT Contractual Services,DST Reapportioning,QA Ltd,157854,"51,300.00", Information Management Services,Large,Programme Expenditure
UK Statistics Authority,Office for National Statistics,18-Oct-19,Hosting,IT Operations,Amazon Web Services Inc,157855,"75,973.30", Web Hosting Services,Large,Programme Expenditure
UK Statistics Authority,Office for National Statistics,18-Oct-19,Exp - Purchase Of Goods/Services - IT Contractual Services,Tech Delivery Next Gen IT And Infrastructure,Cysure Limited,157856,"21,822.45", Software Support,SME,Programme Expenditure
UK Statistics Authority,Office for National Statistics,18-Oct-19,Exp - Purchase Of Goods/Services - Contractor Travel,Tech Delivery Next Gen IT And Infrastructure,Cysure Limited,157856,759.16, Software Support,SME,Programme Expenditure
UK Statistics Authority,Office for National Statistics,18-Oct-19,"ICT Outsourcing, Maintenance And Support",IT Applications,Cysure Limited,157856,"80,690.40", Software Support,SME,Programme Expenditure
UK Statistics Authority,Office for National Statistics,18-Oct-19,Exp - Purchase Of Goods/Services - IT Contractual Services,IT Applications,Cysure Limited,157856,"22,800.00", Software Support,SME,Programme Expenditure
UK Statistics Authority,Office for National Statistics,18-Oct-19,Exp - Purchase Of Goods/Services - Contractor Travel,IT Applications,Cysure Limited,157856,"9,890.45", Software Support,SME,Programme Expenditure
UK Statistics Authority,Office for National Statistics,18-Oct-19,Exp - Purchase Of Goods And Services Consultants,Consultancy Management,Bloom Procurement Services Ltd,157858,"780,687.60", Census Information Management Services,Large,Programme Expenditure
UK Statistics Authority,Office for National Statistics,18-Oct-19,Surveys,Prices Division,Kantar UK Ltd,157859,"195,689.20", Statistical Services,Large,Programme Expenditure
UK Statistics Authority,Office for National Statistics,22-Oct-19,"ICT Outsourcing, Maintenance And Support",Digital Delivery,CTS (Cloud Technology Solutions Ltd),158432,"42,000.00", Google Cloud Services,Large,Programme Expenditure
UK Statistics Authority,Office for National Statistics,22-Oct-19,Hosting,Data Science Campus,Strategic Blue Services Limited,158433,"59,364.13", Cloud Services,SME,Programme Expenditure
UK Statistics Authority,Office for National Statistics,22-Oct-19,Special Payments,Data Collection Service,Good Things Foundation,158436,"90,632.70", Information Managing Services,SME,Programme Expenditure
UK Statistics Authority,Office for National Statistics,23-Oct-19,Exp - Purchase Of Goods/Services - Contractors,Business Indicators And B O P,Mango Solutions,158451,"49,140.00", Information Management Services,SME,Programme Expenditure
UK Statistics Authority,Office for National Statistics,23-Oct-19,Exp - Purchase Of Goods/Services - IT Contractual Services,Data Science Campus,SCC,158452,"86,520.00", Information Management Services,Large,Programme Expenditure
UK Statistics Authority,Office for National Statistics,23-Oct-19,Exp - Purchase Of Goods And Services Consultants,Consultancy Management,Deloitte,158454,"120,000.00", Information Management Services ,Large,Programme Expenditure
UK Statistics Authority,Office for National Statistics,23-Oct-19,FM Contract Payments,Mitie Payments,Vinci Construction UK Limited,158456,"319,147.04", Facility Management Services,Large,Programme Expenditure
UK Statistics Authority,Office for National Statistics,23-Oct-19,Exp - Short-Term Contract & Agency Staff - Full Cost,Census CCS Data Collection,Concept Information Technology Ltd T/A Concept Resourcing,158458,"2,860.80", Census Information Management Services,Large,Programme Expenditure
UK Statistics Authority,Office for National Statistics,23-Oct-19,Exp - Short-Term Contract & Agency Staff - Full Cost,Finance,Concept Information Technology Ltd T/A Concept Resourcing,158458,"2,004.04", Information Management Services,Large,Programme Expenditure
UK Statistics Authority,Office for National Statistics,23-Oct-19,Exp - Purchase Of Goods/Services - Contractors,Census & Soc Methodology Dd,Concept Information Technology Ltd T/A Concept Resourcing,158458,"6,670.51", Census Information Management Services,Large,Programme Expenditure
UK Statistics Authority,Office for National Statistics,23-Oct-19,Exp - Purchase Of Goods/Services - IT Contractual Services,Tech Delivery Legacy Sp,Concept Information Technology Ltd T/A Concept Resourcing,158458,"12,900.00", Information Management Services,Large,Programme Expenditure
UK Statistics Authority,Office for National Statistics,23-Oct-19,Exp - Purchase Of Goods/Services - IT Contractual Services,Digital Delivery,Concept Information Technology Ltd T/A Concept Resourcing,158458,"10,812.00", Information Management Services,Large,Programme Expenditure
UK Statistics Authority,Office for National Statistics,23-Oct-19,Exp - Short-Term Contract & Agency Staff - Full Cost,Interviewer Management TU,Concept Information Technology Ltd T/A Concept Resourcing,158458,"2,188.08", Information Management Services,Large,Programme Expenditure
UK Statistics Authority,Office for National Statistics,23-Oct-19,Other Goods And Services,Interviewer Management TU,Concept Information Technology Ltd T/A Concept Resourcing,158458,"1,161.48", Information Management Services,Large,Programme Expenditure
UK Statistics Authority,Office for National Statistics,23-Oct-19,Other Goods And Services,Interviewer Support,Concept Information Technology Ltd T/A Concept Resourcing,158458,"1,763.15", Information Management Services,Large,Programme Expenditure
UK Statistics Authority,Office for National Statistics,23-Oct-19,Exp - Short-Term Contract & Agency Staff - Full Cost,Prices Division,Concept Information Technology Ltd T/A Concept Resourcing,158458,"4,749.91", Information Management Services,Large,Programme Expenditure
UK Statistics Authority,Office for National Statistics,23-Oct-19,Exp - Short-Term Contract & Agency Staff - Full Cost,Prices Division,Concept Information Technology Ltd T/A Concept Resourcing,158458,"5,311.89", Information Management Services,Large,Programme Expenditure
UK Statistics Authority,Office for National Statistics,23-Oct-19,Exp - Short-Term Contract & Agency Staff - Full Cost,Business Outputs And Developments,Concept Information Technology Ltd T/A Concept Resourcing,158458,"2,890.92", Information Management Services,Large,Programme Expenditure
UK Statistics Authority,Office for National Statistics,23-Oct-19,Travel And Subsistence,CWT Trainline,Corporate Travel Management ,158463,"74,591.69", Corporate Travel Management ,SME,Programme Expenditure
UK Statistics Authority,Office for National Statistics,23-Oct-19,"ICT Outsourcing, Maintenance And Support",Senior Management Team Design,Totalmobile Ltd,158469,"116,868.60", Field Management License and Hosting Charges,SME,Programme Expenditure
UK Statistics Authority,Office for National Statistics,23-Oct-19,Other Goods And Services,2021 Census Statistical Design,Kantar UK Ltd,158471,"15,725.00", Census Management Information Services,Large,Programme Expenditure
UK Statistics Authority,Office for National Statistics,23-Oct-19,Other Goods And Services,2021 Census Statistical Design,Kantar UK Ltd,158471,"16,675.00", Census Management Information Services,Large,Programme Expenditure
UK Statistics Authority,Office for National Statistics,24-Oct-19,Exp - Purchase Of Goods/Services - IT Contractual Services,Digital Publishing,E Synergy Solutions,158858,"12,600.00", Information Management Services ,SME,Programme Expenditure
UK Statistics Authority,Office for National Statistics,24-Oct-19,Exp - Purchase Of Goods/Services - IT Contractual Services,Tech Delivery Next Gen IT And Infrastructure,E Synergy Solutions,158858,"15,210.00", Information Management Services ,SME,Programme Expenditure
UK Statistics Authority,Office for National Statistics,24-Oct-19,Exp - Purchase Of Goods/Services - Incentive Payments,Survey Management,Park Retail Ltd,158859,"37,721.75", Survey Response Incentive Vouchers,Large,Programme Expenditure
UK Statistics Authority,Office for National Statistics,24-Oct-19,Exp - Short-Term Contract & Agency Staff - Full Cost,Stakeholder Engagement And Comms,LA International,158865,"6,717.60", Information Management Services ,SME,Programme Expenditure
UK Statistics Authority,Office for National Statistics,24-Oct-19,Exp - Purchase Of Goods/Services - Contractors,Testing,LA International,158865,"5,574.68", Information Management Services ,SME,Programme Expenditure
UK Statistics Authority,Office for National Statistics,24-Oct-19,Exp - Purchase Of Goods/Services - Contractors,Security Advisory,LA International,158865,"13,840.63", Information Management Services ,SME,Programme Expenditure
UK Statistics Authority,Office for National Statistics,24-Oct-19,Exp - Purchase Of Goods/Services - Contractors,Data Architecture,LA International,158865,"3,748.50", Information Management Services ,SME,Programme Expenditure
UK Statistics Authority,Office for National Statistics,24-Oct-19,Exp - Purchase Of Goods/Services - Contractors,Tech Delivery Data As A Platform,LA International,158865,"10,047.24", Information Management Services ,SME,Programme Expenditure
UK Statistics Authority,Office for National Statistics,24-Oct-19,Exp - Purchase Of Goods/Services - Contractors,Tech Delivery Data As A Platform,LA International,158865,"3,203.88", Information Management Services ,SME,Programme Expenditure
UK Statistics Authority,Office for National Statistics,24-Oct-19,Exp - Purchase Of Goods/Services - Contractors,IT Applications,LA International,158865,"15,551.76", Information Management Services ,SME,Programme Expenditure
UK Statistics Authority,Office for National Statistics,24-Oct-19,Exp - Purchase Of Goods/Services - Contractors,Digital Delivery,LA International,158865,"7,689.30", Information Management Services ,SME,Programme Expenditure
UK Statistics Authority,Office for National Statistics,24-Oct-19,Exp - Purchase Of Goods/Services - Contractor Travel,Digital Delivery,LA International,158865,63.6, Information Management Services ,SME,Programme Expenditure
UK Statistics Authority,Office for National Statistics,24-Oct-19,Exp - Purchase Of Goods And Services Consultants,Operations,Concentra,158870,"37,800.00", Information Management Services,Large,Programme Expenditure
UK Statistics Authority,Office for National Statistics,24-Oct-19,Other Goods And Services,Operations,Concentra,158870,"14,392.32", Information Management Services,Large,Programme Expenditure
UK Statistics Authority,Office for National Statistics,24-Oct-19,"ICT Outsourcing, Maintenance And Support",Digital Publishing,Methods Business & Digital Technology Ltd,158876,"10,800.00", Information Management Services ,Large,Programme Expenditure
UK Statistics Authority,Office for National Statistics,24-Oct-19,Exp - Purchase Of Goods/Services - IT Contractual Services,Digital Publishing,Methods Business & Digital Technology Ltd,158876,"18,000.00", Information Management Services ,Large,Programme Expenditure
UK Statistics Authority,Office for National Statistics,25-Oct-19,Exp - Permanent Uk Staff - Prp Voucher Payments,Ons Corporate Funds,Park Retail Ltd,158885,-373.3, Love2Shop Employee Performance Reward Payment ,Large,Programme Expenditure
UK Statistics Authority,Office for National Statistics,25-Oct-19,Exp - Purchase Of Goods/Services - Incentive Payments,Survey Management,Park Retail Ltd,158885,"49,836.35", Survey Response Incentive Vouchers,Large,Programme Expenditure
UK Statistics Authority,Office for National Statistics,25-Oct-19,Exp - Short-Term Contract & Agency Staff - Full Cost,Stakeholder Engagement And Comms,LA International,158893,"1,679.40", Information Management Services ,SME,Programme Expenditure
UK Statistics Authority,Office for National Statistics,25-Oct-19,Exp - Purchase Of Goods/Services - Contractors,Testing,LA International,158893,"8,586.29", Information Management Services ,SME,Programme Expenditure
UK Statistics Authority,Office for National Statistics,25-Oct-19,Exp - Purchase Of Goods/Services - Contractors,Security And Information Management Saim,LA International,158893,106.76, Information Management Services ,SME,Programme Expenditure
UK Statistics Authority,Office for National Statistics,25-Oct-19,Exp - Purchase Of Goods/Services - Contractors,Security Advisory,LA International,158893,"3,524.22", Information Management Services ,SME,Programme Expenditure
UK Statistics Authority,Office for National Statistics,25-Oct-19,Exp - Purchase Of Goods/Services - Contractors,Data Architecture,LA International,158893,"3,844.62", Information Management Services ,SME,Programme Expenditure
UK Statistics Authority,Office for National Statistics,25-Oct-19,Exp - Purchase Of Goods/Services - Contractors,Tech Delivery Data As A Platform,LA International,158893,"5,413.72", Information Management Services ,SME,Programme Expenditure
UK Statistics Authority,Office for National Statistics,25-Oct-19,Exp - Purchase Of Goods/Services - Contractors,IT Applications,LA International,158893,"12,347.88", Information Management Services ,SME,Programme Expenditure
UK Statistics Authority,Office for National Statistics,25-Oct-19,Exp - Purchase Of Goods/Services - Contractors,Digital Delivery,LA International,158893,"10,905.36", Information Management Services ,SME,Programme Expenditure
UK Statistics Authority,Office for National Statistics,25-Oct-19,Exp - Purchase Of Goods/Services - Contractors,Digital Delivery,LA International,158893,"6,458.94", Information Management Services ,SME,Programme Expenditure
UK Statistics Authority,Office for National Statistics,25-Oct-19,Other Professional Services,Internal Audit,Pricewaterhousecoopers Llp,158895,"32,151.76", Internal Audit Services,Large,Programme Expenditure
UK Statistics Authority,Office for National Statistics,25-Oct-19,Major Works Over £25K,Property Christchurch,Pickford’s Move Managment Ltd,158903,"34,703.71", Major Works Christchurch,Large,Programme Expenditure
UK Statistics Authority,Office for National Statistics,28-Oct-19,Exp - Purchase Of Goods/Services - Contractors,Testing,LA International,159177,"7,048.44", Information Management Services ,SME,Programme Expenditure
UK Statistics Authority,Office for National Statistics,28-Oct-19,Exp - Purchase Of Goods/Services - Contractors,Data Architecture,LA International,159177,"3,588.30", Information Management Services ,SME,Programme Expenditure
UK Statistics Authority,Office for National Statistics,28-Oct-19,Exp - Purchase Of Goods/Services - Contractors,Data Architecture,LA International,159177,"3,844.62", Information Management Services ,SME,Programme Expenditure
UK Statistics Authority,Office for National Statistics,28-Oct-19,Exp - Purchase Of Goods/Services - Contractors,Tech Delivery Data As A Platform,LA International,159177,"2,525.52", Information Management Services ,SME,Programme Expenditure
UK Statistics Authority,Office for National Statistics,28-Oct-19,Exp - Purchase Of Goods/Services - Contractors,IT Applications,LA International,159177,"6,100.38", Information Management Services ,SME,Programme Expenditure
UK Statistics Authority,Office for National Statistics,28-Oct-19,Exp - Purchase Of Goods/Services - Contractors,Digital Delivery,LA International,159177,"9,483.47", Information Management Services ,SME,Programme Expenditure
UK Statistics Authority,Office for National Statistics,28-Oct-19,Exp - Short-Term Contract & Agency Staff - Full Cost,Census White Paper,Parity Resources Limited,159178,"3,253.66", Census Information Management Services,Large,Programme Expenditure
UK Statistics Authority,Office for National Statistics,28-Oct-19,Exp - Purchase Of Goods/Services - Contractors,Stakeholder Engagement And Comms,Parity Resources Limited,159178,"2,343.48", Information Management Services,Large,Programme Expenditure
UK Statistics Authority,Office for National Statistics,28-Oct-19,Exp - Purchase Of Goods/Services - Contractors,Business Architecture,Parity Resources Limited,159178,"20,954.40", Information Management Services,Large,Programme Expenditure
UK Statistics Authority,Office for National Statistics,28-Oct-19,Exp - Short-Term Contract & Agency Staff - Full Cost,Census CCS Data Collection,Parity Resources Limited,159178,"5,518.93", Census Information Management Services,Large,Programme Expenditure
UK Statistics Authority,Office for National Statistics,28-Oct-19,Exp - Purchase Of Goods/Services - Contractors,Programme Other,Parity Resources Limited,159178,150.78, Information Management Services,Large,Programme Expenditure
UK Statistics Authority,Office for National Statistics,28-Oct-19,Exp - Purchase Of Goods/Services - Contractors,Programme Delivery,Parity Resources Limited,159178,"20,441.52", Information Management Services,Large,Programme Expenditure
UK Statistics Authority,Office for National Statistics,28-Oct-19,Exp - Short-Term Contract & Agency Staff - Full Cost,Business Indicators And B O P,Parity Resources Limited,159178,"2,059.96", Information Management Services,Large,Programme Expenditure
UK Statistics Authority,Office for National Statistics,28-Oct-19,Exp - Purchase Of Goods/Services - Contractors,Business Indicators And B O P,Parity Resources Limited,159178,"12,816.00", Information Management Services,Large,Programme Expenditure
UK Statistics Authority,Office for National Statistics,28-Oct-19,Exp - Purchase Of Goods/Services - Contractors,Business Indicators And B O P,Parity Resources Limited,159178,"23,251.20", Information Management Services,Large,Programme Expenditure
UK Statistics Authority,Office for National Statistics,28-Oct-19,Exp - Purchase Of Goods/Services - Contractors,Productivity Innovation Engagement And Research,Parity Resources Limited,159178,"12,600.00", Information Management Services,Large,Programme Expenditure
UK Statistics Authority,Office for National Statistics,28-Oct-19,Exp - Short-Term Contract & Agency Staff - Full Cost,Strategy And Engagement,Parity Resources Limited,159178,"1,966.92", Information Management Services,Large,Programme Expenditure
UK Statistics Authority,Office for National Statistics,28-Oct-19,Exp - Short-Term Contract & Agency Staff - Full Cost,Ask Business Services,Parity Resources Limited,159178,"1,092.80", Information Management Services,Large,Programme Expenditure
UK Statistics Authority,Office for National Statistics,28-Oct-19,Exp - Purchase Of Goods/Services - Contractors,Security Advisory,Parity Resources Limited,159178,"14,353.92", Information Management Services,Large,Programme Expenditure
UK Statistics Authority,Office for National Statistics,28-Oct-19,Exp - Purchase Of Goods/Services - Contractors,Security Advisory,Parity Resources Limited,159178,"9,996.48", Information Management Services,Large,Programme Expenditure
UK Statistics Authority,Office for National Statistics,28-Oct-19,Exp - Short-Term Contract & Agency Staff - Full Cost,Health Analysis And Life Events,Parity Resources Limited,159178,"4,859.14", Information Management Services,Large,Programme Expenditure
UK Statistics Authority,Office for National Statistics,28-Oct-19,Exp - Purchase Of Goods/Services - Contractors,Tech Delivery Legacy Sp,Parity Resources Limited,159178,"6,343.92", Information Management Services,Large,Programme Expenditure
UK Statistics Authority,Office for National Statistics,28-Oct-19,Exp - Purchase Of Goods/Services - Contractors,IT Applications,Parity Resources Limited,159178,"66,355.08", Information Management Services,Large,Programme Expenditure
UK Statistics Authority,Office for National Statistics,28-Oct-19,Exp - Short-Term Contract & Agency Staff - Full Cost,Office Of Chief Data And Information,Parity Resources Limited,159178,"1,545.12", Information Management Services,Large,Programme Expenditure
UK Statistics Authority,Office for National Statistics,28-Oct-19,Exp - Short-Term Contract & Agency Staff - Full Cost,Digital Delivery,Parity Resources Limited,159178,"1,252.08", Information Management Services,Large,Programme Expenditure
UK Statistics Authority,Office for National Statistics,28-Oct-19,Exp - Purchase Of Goods/Services - Contractors,Digital Delivery,Parity Resources Limited,159178,"28,707.84", Information Management Services,Large,Programme Expenditure
UK Statistics Authority,Office for National Statistics,28-Oct-19,Exp - Purchase Of Goods/Services - Contractors,Digital Delivery,Parity Resources Limited,159178,"14,353.92", Information Management Services,Large,Programme Expenditure
UK Statistics Authority,Office for National Statistics,28-Oct-19,Exp - Purchase Of Goods/Services - Contractors,Digital Delivery,Parity Resources Limited,159178,"27,676.22", Information Management Services,Large,Programme Expenditure
UK Statistics Authority,Office for National Statistics,28-Oct-19,Exp - Purchase Of Goods/Services - Contractors,Digital Delivery,Parity Resources Limited,159178,"9,259.56", Information Management Services,Large,Programme Expenditure
UK Statistics Authority,Office for National Statistics,28-Oct-19,Exp - Purchase Of Goods/Services - IT Contractual Services,Digital Delivery,Parity Resources Limited,159178,"10,957.68", Information Management Services,Large,Programme Expenditure
UK Statistics Authority,Office for National Statistics,28-Oct-19,Exp - Short-Term Contract & Agency Staff - Full Cost,Interviewer Management TU,Parity Resources Limited,159178,113.4, Information Management Services,Large,Programme Expenditure
UK Statistics Authority,Office for National Statistics,28-Oct-19,Other Goods And Services,Interviewer Management TU,Parity Resources Limited,159178,801.9, Information Management Services,Large,Programme Expenditure
UK Statistics Authority,Office for National Statistics,28-Oct-19,Exp - Purchase Of Goods/Services - Contractors,Interviewer Support,Parity Resources Limited,159178,"5,767.20", Information Management Services,Large,Programme Expenditure
UK Statistics Authority,Office for National Statistics,28-Oct-19,Exp - Short-Term Contract & Agency Staff - Full Cost,Labour Market,Parity Resources Limited,159178,"1,439.44", Information Management Services,Large,Programme Expenditure
UK Statistics Authority,Office for National Statistics,28-Oct-19,Exp - Short-Term Contract & Agency Staff - Full Cost,Labour Market,Parity Resources Limited,159178,"1,439.44", Information Management Services,Large,Programme Expenditure
UK Statistics Authority,Office for National Statistics,28-Oct-19,Special Payments,Census Ccs Data Collection,Adecco UK Limited,159182,"1,581,328.80", Census Recruitment and Payroll Services,SME,Programme Expenditure
UK Statistics Authority,Office for National Statistics,29-Oct-19,Exp - Purchase Of Goods/Services - IT Contractual Services,Dst Reapportioning,E Synergy Solutions,159483,"50,655.00", Information Management Services ,SME,Programme Expenditure
UK Statistics Authority,Office for National Statistics,29-Oct-19,Exp - Purchase Of Goods/Services - IT Contractual Services,Tech Delivery Legacy Sp,E Synergy Solutions,159483,"107,442.00", Information Management Services ,SME,Programme Expenditure
UK Statistics Authority,Office for National Statistics,29-Oct-19,Exp - Purchase Of Goods/Services - IT Contractual Services,Data Science Campus,E Synergy Solutions,159483,"35,010.00", Information Management Services ,SME,Programme Expenditure
UK Statistics Authority,Office for National Statistics,29-Oct-19,Exp - Purchase Of Goods/Services - Contractor Travel,Data Science Campus,E Synergy Solutions,159483,"3,651.32", Information Management Services ,SME,Programme Expenditure
UK Statistics Authority,Office for National Statistics,29-Oct-19,Surveys,Social Surveys Division,Natcen Social Research,159484,"277,472.27", Statistical Services,Large,Programme Expenditure
UK Statistics Authority,Office for National Statistics,29-Oct-19,Statisical Services,Social Surveys Division,Natcen Social Research,159484,"-86,330.00", Statistical Services,Large,Programme Expenditure
UK Statistics Authority,Office for National Statistics,29-Oct-19,Exp - Purchase Of Goods/Services - Other ICT Costs Software,Finance,SCC,159488,"154,286.88", Information Management Services,Large,Programme Expenditure
UK Statistics Authority,Office for National Statistics,29-Oct-19,"ICT Outsourcing, Maintenance And Support",IT Operations,SCC,159488,"40,970.04", Information Management Services,Large,Programme Expenditure
UK Statistics Authority,Office for National Statistics,29-Oct-19,Other Professional Services,Social Survey Transformation Newport,Nisra,159490,"90,000.00", Statistical Services,Large,Programme Expenditure
UK Statistics Authority,Office for National Statistics,29-Oct-19,Surveys,Social Surveys Division,Nisra,159490,"240,879.38", Statistical Services,Large,Programme Expenditure
UK Statistics Authority,Office for National Statistics,29-Oct-19,Exp - Purchase Of Goods/Services - Contractors,Tech Delivery Data As A Platform,Certes Computing Ltd,159491,"3,843.00", Information Management Services,SME,Programme Expenditure
UK Statistics Authority,Office for National Statistics,29-Oct-19,Exp - Purchase Of Goods/Services - Contractors,Office Of Chief Data And Information,Certes Computing Ltd,159491,"3,522.66", Information Management Services,SME,Programme Expenditure
UK Statistics Authority,Office for National Statistics,29-Oct-19,Exp - Purchase Of Goods/Services - Contractors,Digital Delivery,Certes Computing Ltd,159491,"19,982.88", Information Management Services,SME,Programme Expenditure
UK Statistics Authority,Office for National Statistics,29-Oct-19,Exp - Purchase Of Goods/Services - Contractors,Digital Delivery,Certes Computing Ltd,159491,"11,016.56", Information Management Services,SME,Programme Expenditure
UK Statistics Authority,Office for National Statistics,29-Oct-19,Exp - Purchase Of Goods/Services - Contractors,Digital Delivery,Certes Computing Ltd,159491,"17,613.90", Information Management Services,SME,Programme Expenditure
UK Statistics Authority,Office for National Statistics,29-Oct-19,Other Goods And Services,Stakeholder Engagement And Comms,Four Communications Group Limited,159497,"44,365.20", Communication and Management Information Services,SME,Programme Expenditure
UK Statistics Authority,Office for National Statistics,29-Oct-19,Exp - Purchase Of Goods/Services - IT Contractual Services,Tech Delivery Srs,"Nomensa Ltd,",159498,"32,010.00", Information Management Services,Large,Programme Expenditure
UK Statistics Authority,Office for National Statistics,29-Oct-19,Training & Development,Learning And Capability,The Whitehall & Industry Group,159501,"126,763.20", Corporate Training,SME,Programme Expenditure
UK Statistics Authority,Office for National Statistics,29-Oct-19,Special Payments,Data Collection Service,Serco Ltd,159503,"184,470.74", Census Contact Centre Services,Large,Programme Expenditure
UK Statistics Authority,Office for National Statistics,29-Oct-19,Special Payments,Data Collection Service,Leidos Innovations UK Limited,159505,"554,810.22", Census Questionaire Management Services,Large,Programme Expenditure
UK Statistics Authority,Office for National Statistics,01-Oct-19,Exp - Purchase Of Goods And Services Consultants,Productivity Innovation Engagement And Research,Niesr,30001585,"410,689.56", Statistical Services,SME,Programme Expenditure
UK Statistics Authority,Office for National Statistics,01-Oct-19,"ICT Outsourcing, Maintenance And Support",Senior Management Team Design,Totalmobile Ltd,30001586,"285,453.60", Field Management license and Hosting Charges,SME,Programme Expenditure
UK Statistics Authority,Office for National Statistics,10-Oct-19,Exp - Permanent UK Staff - PRP Voucher Payments,Ons Corporate Funds,HM Revenue & Customs,30001607,"171,460.87", PAYE 2018/19 Settlement Agreement ,Large,Programme Expenditure
UK Statistics Authority,Office for National Statistics,11-Oct-19,Exp Other Taxation Payable,Interview Management IPS,HM Revenue & Customs,30001610,"53,806.00", PAYE Tax Liability,Large,Programme Expenditure
UK Statistics Authority,Office for National Statistics,18-Oct-19,Electricity,Property Titchfield,EDF Energy,30001621,"26,615.22", Electricity Charges Titchfield,Large,Programme Expenditure
UK Statistics Authority,Office for National Statistics,21-Oct-19,Electricity,Property Newport,EDF Energy,30001625,"30,058.34", Electricity Charges Newport,Large,Programme Expenditure
UK Statistics Authority,Office for National Statistics,21-Oct-19,Training & Development,IT Operations,Nielsen Norman Group,30001629,"60,321.65", Training ,SME,Programme Expenditure
UK Statistics Authority,Office for National Statistics,21-Oct-19,Training & Development,Office Of Chief Data And Information,Nielsen Norman Group,30001629,"1,186.04", Training ,SME,Programme Expenditure
